bitfinex-derivatives/quotes_ETHF0:USTF0_20250123
["timestamp","ask_amount","ask_price","bid_price","bid_amount"]
[1737631902456,0.62238,3214.6,3214.5,0.62238]
[1737631902656,0.4963,3214.7,3214.3,2.45918238]
[1737631902864,0.6224,3214.6,3214.5,0.62239]
[1737631904663,0.4963,3214.7,3214.5,3.2078]
[1737631904863,0.62237,3214.6,3214.5,3.83018]
[1737631905164,0.62237,3214.6,3214.5,3.2078]
[1737631906659,0.4963,3214.7,3214.2,1.14054]
[1737631907368,2.17831,3214.6,3214.1,0.62247]
[1737631907663,2.17831,3214.6,3214.1,3.83027]
[1737631907664,0.62245,3214.3,3214.1,3.83027]
[1737631908051,0.503,3214.2,3214.1,3.83027]
[1737631908258,1.61275,3214.2,3214.1,3.83027]
[1737631908451,0.9903,3214.2,3214.1,3.2078]
[1737631908655,1.61275,3214.2,3214.1,3.2078]
[1737631909167,1.61275,3214.2,3214.1,3.83027]
[1737631909365,0.9903,3214.2,3214.1,3.83027]
[1737631909768,2.03823,3214.9,3214.1,3.83027]
[1737631909769,1.55588,3214.8,3214.2,0.62244]
[1737631910067,0.6224,3214.5,3214.4,0.62241]
[1737631910368,0.6224,3214.5,3214.3,2.45918238]
[1737631910559,0.6224,3214.5,3214.4,0.62241]
[1737631910760,0.6224,3214.5,3214.4,0.479]
[1737631910960,0.6224,3214.5,3214.4,1.10141]
[1737631911462,0.62238,3214.6,3214.5,0.62239]
[1737631911965,0.62238,3214.6,3214.4,0.9966]
[1737631912160,0.62238,3214.6,3214.4,1.619]
[1737631912562,3.2078,3215.0,3214.9,0.62232]
[1737631912760,3.2078,3215.4,3214.9,5.66698238]
[1737631912960,0.6222,3215.5,3215.1,0.62227]
[1737631913160,0.62222,3215.4,3215.1,0.62227]
[1737631913363,0.62222,3215.4,3215.0,0.9966]
[1737631913364,0.62222,3215.4,3215.2,0.62225]
[1737631913666,0.5205,3215.6,3215.2,2.45918238]
[1737631913865,1.14269,3215.6,3215.4,0.62222]
[1737631914165,0.5205,3215.6,3215.2,2.45918238]
[1737631914664,0.62195,3216.8,3216.4,0.62202]
[1737631914864,2.45918238,3216.5,3215.5,3.2078]
[1737631915066,2.45918238,3216.5,3216.0,3.2078]
[1737631915264,0.62199,3216.6,3216.1,0.62207]
[1737631915459,0.62199,3216.6,3216.3,0.62204]
[1737631915665,0.4791,3216.5,3216.3,0.62204]
[1737631915973,1.10111,3216.5,3216.2,0.62206]
[1737631916158,0.4791,3216.5,3216.4,0.62203]
[1737631916467,3.2078,3217.0,3216.4,3.2078]
[1737631916768,0.62194,3216.9,3216.5,3.07959409]
[1737631916968,0.62194,3216.9,3216.5,0.62041171]
[1737631917363,3.2078,3217.0,3216.5,0.62041171]
[1737631917364,3.82972,3217.0,3216.5,0.62041171]
[1737631917561,3.2078,3217.0,3216.5,2.45918238]
[1737631917760,3.2078,3217.0,3216.8,0.62194]
[1737631918168,3.2078,3217.0,3216.6,0.5049]
[1737631918473,2.7156,3217.3,3216.9,0.62193]
[1737631918770,2.7156,3217.3,3216.9,0.62192]
[1737631918963,2.7156,3217.3,3216.8,2.45918238]
[1737631919169,0.62188,3217.2,3216.9,0.62193]
[1737631919865,0.4791,3217.3,3216.9,0.62193]
[1737631920065,0.4791,3217.3,3216.9,0.5266]
[1737631920367,3.2078,3217.4,3216.9,0.5266]
[1737631920576,0.62186,3217.3,3217.0,0.62189]
[1737631920876,0.62185,3217.3,3217.2,3.2078]
[1737631921173,3.2078,3217.9,3217.2,3.2078]
[1737631921373,3.82955,3217.9,3217.6,2.45918238]
[1737631921564,3.2078,3217.9,3217.6,2.45918238]
[1737631921762,3.82954,3217.9,3217.6,2.45918238]
[1737631921963,3.82955,3217.9,3217.6,2.45918238]
[1737631922359,3.2078,3217.9,3217.6,2.45918238]
[1737631922663,0.62177,3217.8,3217.6,2.45918238]
[1737631922863,3.2078,3217.9,3217.6,2.45918238]
[1737631923072,3.82955,3217.9,3217.6,2.45918238]
[1737631923272,0.62177,3217.8,3217.6,2.45918238]
[1737631923668,0.62171,3218.1,3217.7,0.62176]
[1737631923860,0.62171,3218.1,3217.6,5.66698238]
[1737631923861,0.62171,3218.1,3218.0,3.2078]
[1737631926279,1.5023,3218.7,3218.0,3.2078]
[1737631926570,0.6217,3218.2,3218.0,3.2078]
[1737631926777,0.6217,3218.1,3218.0,3.21246803]
[1737631926967,3.2078,3218.8,3218.0,5.67165041]
[1737631927165,0.62161,3218.6,3218.2,0.62167]
[1737631927367,3.2078,3218.8,3218.2,0.62167]
[1737631927664,3.2078,3218.8,3218.2,0.5004]
[1737631927868,0.62161,3218.6,3218.2,1.12207]
[1737631928070,4.01291238,3219.2,3218.4,3.2078]
[1737631928071,0.62159,3218.7,3218.4,3.2078]
[1737631928570,0.62154,3219.0,3218.6,3.08077238]
[1737631928773,0.62156,3218.9,3218.8,3.2078]
[1737631929674,2.07053,3219.4,3218.8,3.2078]
[1737631929675,0.5166,3219.3,3218.8,3.2078]
[1737631929981,0.62153,3219.0,3218.8,3.2078]
[1737631930176,0.5166,3219.3,3218.8,3.2078]
[1737631930378,0.6215,3219.2,3219.1,3.2078]
[1737631932077,5.77488,3219.7,3219.1,3.2078]
[1737631932278,3.7244,3219.7,3219.1,3.2078]
[1737631932475,0.5166,3219.7,3219.1,3.2078]
[1737631932677,0.62149,3219.2,3219.1,3.2078]
[1737631934888,0.62148,3219.3,3219.1,3.2078]
[1737631935292,0.5166,3219.7,3219.1,3.2078]
[1737631935590,0.62149,3219.2,3219.1,3.2078]
[1737631937081,0.62158,3218.7,3218.6,3.2078]
[1737631937479,3.2078,3218.7,3218.1,3.2078]
[1737631937683,0.62168,3218.2,3218.1,3.2078]
[1737631939587,0.6217,3218.1,3218.0,0.00466803]
[1737631939778,1.742,3218.6,3218.0,0.00466803]
[1737631939985,1.742,3218.6,3218.0,1.63947803]
[1737631939986,0.62168,3218.3,3218.0,1.63947803]
[1737631940281,0.62168,3218.3,3218.0,3.47695041]
[1737631940583,1.742,3218.6,3218.0,3.47695041]
[1737631940776,0.6217,3218.1,3218.0,1.01776803]
[1737631940978,0.62169,3218.2,3218.0,1.01776803]
[1737631941387,0.6217,3218.1,3218.0,1.01776803]
[1737631942293,0.62169,3218.2,3218.0,1.01776803]
[1737631942483,4.68938238,3219.0,3218.0,3.47695041]
[1737631942678,0.62164,3218.4,3218.3,3.2078]
[1737631948989,0.6217,3218.1,3218.0,0.00466803]
[1737631949393,4.74344105,3218.1,3218.0,0.00466803]
[1737631949688,4.74344105,3218.1,3218.0,8.03e-06]
[1737631950494,9.74344105,3218.1,3218.0,8.03e-06]
[1737631952896,4.74344105,3218.1,3218.0,8.03e-06]
[1737631954897,9.74344105,3218.1,3218.0,8.03e-06]
[1737631955394,9.74344105,3218.1,3216.3,0.4951]
[1737631955395,1.55433,3218.0,3216.4,3.2078]
[1737631955602,0.622,3216.6,3216.4,6.19308238]
[1737631955794,0.62198,3216.7,3216.4,6.81510238]
[1737631956090,1.742,3217.5,3216.4,6.19308238]
[1737631956299,0.6219,3217.1,3216.8,0.62193]
[1737631956600,0.6219,3217.1,3217.0,3.2078]
[1737631957196,0.62197,3216.7,3216.6,0.0046607]
[1737631957493,3.82977,3216.7,3216.6,0.0046607]
[1737631958995,0.62197,3216.7,3216.6,0.0046607]
[1737631959794,0.62197,3216.7,3216.6,40.8046607]
[1737631962699,0.62197,3216.7,3216.6,0.0046607]
[1737631964099,0.62197,3216.7,3216.6,0.4840607]
[1737631964900,3.2078,3217.1,3216.6,0.4840607]
[1737631965100,0.62196,3216.8,3216.6,3.6918607]
[1737631966096,0.62197,3216.8,3216.6,3.6918607]
[1737631966402,0.62197,3216.7,3216.6,3.6918607]
[1737631967300,0.62191,3217.0,3216.6,3.6918607]
[1737631967605,0.62176,3217.8,3217.5,0.6218]
[1737631967904,0.5138,3218.3,3217.6,3.6989]
[1737631968205,0.00461134,3218.4,3217.6,3.6989]
[1737631968206,0.62171,3218.1,3217.8,3.08093238]
[1737631968400,0.62171,3218.1,3217.8,0.62175]
[1737631968593,0.00461134,3218.4,3217.6,4.6624]
[1737631968801,0.62175,3217.9,3217.6,4.6624]
[1737631969102,0.62175,3217.9,3217.6,5.28419]
[1737631969305,0.62175,3217.9,3217.7,40.8]
[1737631970498,0.62176,3217.8,3217.7,40.8]
[1737631970899,0.62174,3217.9,3217.7,41.42177]
[1737631971101,0.62174,3217.9,3217.7,0.62177]
[1737631971697,0.62176,3217.8,3217.7,0.62177]
[1737631972002,0.62178,3217.7,3217.6,42.2546]
[1737631972201,0.62178,3217.7,3217.6,0.9686]
[1737631972803,2.45918238,3217.9,3217.2,3.2078]
[1737631973005,0.62185,3217.3,3217.2,0.5148]
[1737631980208,0.62183,3217.5,3217.3,0.62185]
[1737631980709,3.2078,3217.7,3217.2,0.5148]
[1737631980910,3.82959,3217.7,3217.4,0.62183]
[1737631981206,3.2078,3218.1,3217.5,3.2078]
[1737631981404,3.82951,3218.1,3217.8,0.62175]
[1737631981602,3.82951,3218.1,3217.9,0.5122]
[1737631981807,3.82951,3218.1,3217.9,1.0049]
[1737631982009,0.62172,3218.0,3217.9,1.0049]
[1737631982406,3.2078,3218.1,3217.9,1.0049]
[1737631982615,0.00461134,3218.4,3217.9,1.0049]
[1737631983116,0.62171,3218.1,3217.9,1.0049]
[1737631983412,0.00461134,3218.4,3217.9,1.0049]
[1737631983612,0.6217,3218.1,3217.9,1.62663]
[1737631983801,0.00461134,3218.4,3217.9,1.0049]
[1737631984010,0.62172,3218.0,3217.9,1.0049]
[1737631985117,0.62179,3217.6,3217.5,3.2078]
[1737631988213,2.45918238,3217.8,3217.3,0.25185282]
[1737631988414,0.62185,3217.3,3217.2,0.9796]
[1737631988718,0.62185,3217.3,3217.2,0.4795]
[1737631992115,2.45918238,3217.5,3216.7,3.6946]
[1737631992417,0.62191,3217.1,3216.9,0.62193]
[1737631992616,2.45918238,3217.5,3216.8,0.5026]
[1737631992912,0.62191,3217.0,3216.9,40.8]
[1737631993309,0.62193,3216.9,3216.8,0.5026]
[1737631993509,0.62197,3216.7,3216.6,0.0046607]
[1737631999422,0.62196,3216.8,3216.6,0.0046607]
[1737631999621,0.62197,3216.7,3216.6,0.0046607]
[1737632001017,7.94414844,3216.7,3216.6,0.0046607]
[1737632001422,0.62207,3216.2,3216.1,1.039]
[1737632004527,0.62203,3216.4,3216.2,0.62206]
[1737632004723,0.0046607,3216.5,3216.3,3.82985]
[1737632004923,0.0046607,3216.5,3216.4,0.62203]
[1737632005629,1.753,3216.7,3216.3,3.2078]
[1737632005926,1.753,3216.7,3216.5,0.62199]
[1737632006325,0.62199,3216.6,3216.4,0.62202]
[1737632006532,0.62197,3216.7,3216.5,0.622]
[1737632007220,0.62195,3216.8,3216.4,0.62201]
[1737632007430,0.62201,3216.5,3216.3,3.82983]
[1737632007623,0.62203,3216.4,3216.3,3.2078]
[1737632009024,4.03829078,3216.4,3216.1,0.5289]
[1737632009231,0.62207,3216.2,3216.1,0.5289]
[1737632013331,0.62207,3216.2,3215.4,2.45918238]
[1737632013332,1.55522,3216.1,3214.5,3.2078]
[1737632013533,3.08143238,3215.3,3215.2,0.5197]
[1737632013827,3.2078,3215.3,3215.2,0.5197]
[1737632014033,3.82996,3215.8,3215.3,0.62224]
[1737632014230,3.2078,3215.8,3215.4,0.4967]
[1737632014438,0.62218,3215.7,3215.4,0.4967]
[1737632014729,3.2078,3215.8,3215.4,0.4967]
[1737632014730,3.82995,3215.8,3215.4,0.4967]
[1737632014927,3.2078,3215.8,3215.4,0.4967]
[1737632015122,0.62217,3215.7,3215.4,0.4967]
[1737632015936,3.08136238,3215.7,3215.4,0.4967]
[1737632016436,2.45918238,3215.7,3215.4,0.4967]
[1737632016642,0.6222,3215.5,3215.4,0.4967]
[1737632016933,0.62222,3215.4,3215.3,0.491]
[1737632017527,0.62221,3215.5,3215.3,0.491]
[1737632017932,0.62222,3215.4,3215.3,0.491]
[1737632018335,2.45918238,3215.7,3215.3,0.491]
[1737632018537,0.62221,3215.5,3215.3,0.491]
[1737632019036,0.62222,3215.4,3215.3,0.491]
[1737632019333,2.45918238,3215.7,3215.3,0.491]
[1737632019736,3.08135238,3215.7,3215.3,1.11324]
[1737632019936,2.45918238,3215.7,3215.4,41.42221]
[1737632020336,3.82995,3215.8,3215.4,40.8]
[1737632020337,3.2078,3215.8,3215.4,40.8]
[1737632020642,3.2078,3215.8,3215.5,0.62219]
[1737632020938,3.2078,3215.8,3215.4,41.42221]
[1737632021134,3.82996,3215.8,3215.4,41.42221]
[1737632021340,3.82996,3215.8,3215.5,0.6222]
[1737632021742,0.62218,3215.7,3215.4,40.8]
[1737632021935,3.2078,3215.8,3215.4,44.63001]
[1737632021936,3.82995,3215.8,3215.4,44.63001]
[1737632022136,3.2078,3215.8,3215.4,44.63001]
[1737632022337,0.62217,3215.7,3215.4,44.63001]
[1737632022831,0.62215,3215.8,3215.6,0.62217]
[1737632023037,0.0046607,3215.9,3215.4,44.0078]
[1737632023344,0.62214,3215.8,3215.5,0.62219]
[1737632023543,0.0046607,3215.9,3215.4,44.63001]
[1737632023838,0.62217,3215.7,3215.4,44.0078]
[1737632024044,0.62217,3215.7,3215.5,0.6222]
[1737632024343,0.62224,3215.3,3215.2,0.5243607]
[1737632024537,2.45918238,3215.4,3215.2,0.5243607]
[1737632024737,3.08141238,3215.4,3215.2,1.1466107]
[1737632024942,3.08141238,3215.4,3215.2,41.9466107]
[1737632025146,2.45918238,3215.4,3215.2,41.3243607]
[1737632025638,5.66698238,3215.7,3215.6,0.62218]
[1737632025831,6.28914238,3215.7,3215.5,0.62219]
[1737632026036,6.28914238,3215.7,3215.6,0.4969]
[1737632026239,5.66698238,3215.7,3215.6,0.9863]
[1737632026843,5.66698238,3215.7,3215.6,1.60848]
[1737632027043,5.66698238,3215.7,3215.6,0.9863]
[1737632027239,3.2078,3215.7,3215.6,0.9863]
[1737632027447,2.45918238,3216.3,3216.0,0.6221]
[1737632027751,2.45918238,3216.3,3216.1,0.4894]
[1737632028053,0.62207,3216.2,3216.1,0.4894]
[1737632028844,2.45918238,3216.3,3216.1,0.4894]
[1737632029045,0.62207,3216.2,3216.1,0.4894]
[1737632029248,2.45918238,3216.3,3216.1,0.4894]
[1737632029542,0.62207,3216.2,3216.1,0.4894]
[1737632029948,3.08124238,3216.3,3216.1,0.4894]
[1737632030145,3.08123238,3216.3,3216.1,1.11148]
[1737632030338,2.45918238,3216.3,3216.2,0.62207]
[1737632030546,2.45918238,3216.3,3216.2,0.4971]
[1737632030842,3.08123238,3216.3,3216.2,0.4971]
[1737632031041,0.62205,3216.3,3216.2,0.4971]
[1737632032442,0.62205,3216.3,3216.2,0.28859119]
[1737632032841,0.62207,3216.2,3216.1,0.4894]
[1737632033051,0.62216,3215.8,3215.6,3.2078]
[1737632033346,3.08134238,3215.7,3215.6,3.2078]
[1737632033546,0.62216,3215.7,3215.6,3.2078]
[1737632039546,3.05825,3216.1,3215.6,3.82998]
[1737632039547,0.62216,3215.8,3215.6,3.82998]
[1737632039747,1.503,3216.1,3215.6,3.2078]
[1737632039961,0.62216,3215.8,3215.6,3.2078]
[1737632040258,0.5169,3216.1,3215.6,3.2078]
[1737632040457,3.2078,3216.2,3215.6,3.2078]
[1737632040654,0.62211,3216.0,3215.8,0.62214]
[1737632040862,0.62211,3216.0,3215.8,0.62213]
[1737632041063,0.62211,3216.0,3215.9,0.5155]
[1737632041258,0.62209,3216.1,3215.9,1.13762]
[1737632041464,3.82988,3216.2,3216.0,1.1108]
[1737632041665,0.62208,3216.1,3216.0,0.4887]
[1737632042964,2.45918238,3216.3,3216.0,0.4887]
[1737632043166,0.62208,3216.1,3216.0,0.4887]
[1737632043654,1.014,3216.4,3216.0,0.4887]
[1737632043856,0.48551937,3216.5,3216.0,3.6965]
[1737632044159,1.10753937,3216.5,3216.3,0.62205]
[1737632044460,0.62203,3216.4,3216.2,0.62205]
[1737632045167,2.45918238,3216.3,3216.0,3.6965]
[1737632045363,0.62215,3215.8,3215.6,3.2078]
[1737632045759,0.62214,3215.8,3215.6,3.2078]
[1737632046460,0.62214,3215.8,3215.6,2.50150595]
[1737632047163,1.0322,3216.2,3215.6,1.87932595]
[1737632047359,0.62216,3215.7,3215.6,1.87932595]
[1737632048866,0.5097,3215.9,3215.2,0.0046607]
[1737632049065,3.08142238,3215.3,3215.2,0.0046607]
[1737632049667,0.62224,3215.3,3215.2,0.0046607]
[1737632050163,3.2078,3215.5,3215.2,0.0046607]
[1737632050369,3.83001,3215.5,3215.2,0.6269107]
[1737632050567,0.4996,3215.6,3215.2,0.0046607]
[1737632050765,0.62222,3215.5,3215.3,0.5194]
[1737632050970,0.62222,3215.4,3215.3,0.5194]
[1737632051361,0.4996,3215.6,3215.3,0.5194]
[1737632051362,0.62221,3215.5,3215.3,0.5194]
[1737632052264,0.4996,3215.6,3215.3,0.5194]
[1737632052473,0.62222,3215.4,3215.3,0.5194]
[1737632053973,0.62221,3215.5,3215.3,0.5194]
[1737632054269,0.4996,3215.6,3215.3,0.5194]
[1737632054270,0.62222,3215.4,3215.3,0.5194]
[1737632054969,0.62221,3215.5,3215.3,0.5194]
[1737632055471,0.6222,3215.6,3215.3,1.14163]
[1737632055678,0.6222,3215.5,3215.4,0.5108]
[1737632055870,0.62222,3215.4,3215.3,0.5194]
[1737632057571,3.2078,3215.9,3215.3,0.5194]
[1737632057875,3.2078,3216.3,3215.8,0.62213]
[1737632058067,3.82986,3216.3,3215.9,2.1456]
[1737632058268,3.2078,3216.3,3215.9,1.5235]
[1737632058467,3.82985,3216.3,3216.0,0.62209]
[1737632058671,3.2078,3216.3,3215.9,1.5235]
[1737632058875,3.82986,3216.3,3215.9,1.5235]
[1737632059072,3.2078,3216.3,3216.0,0.62209]
[1737632059269,0.62207,3216.2,3215.9,2.14562]
[1737632059976,0.6221,3216.1,3215.9,1.5235]
[1737632060170,0.6221,3216.1,3215.9,2.14562]
[1737632060375,0.62208,3216.2,3215.9,2.14562]
[1737632060573,0.62208,3216.2,3215.9,2.14561]
[1737632060773,0.62209,3216.1,3215.9,2.14561]
[1737632060970,0.62209,3216.1,3215.9,1.5235]
[1737632061172,0.6221,3216.0,3215.9,1.5235]
[1737632061576,0.6221,3216.1,3215.9,2.14562]
[1737632061775,0.6221,3216.1,3215.9,1.5235]
[1737632062185,2.46380175,3216.5,3215.9,1.5235]
[1737632062479,0.62207,3216.2,3216.0,0.6221]
[1737632062974,2.46380175,3216.5,3215.9,1.5235]
[1737632063179,0.62203,3216.4,3215.9,1.5235]
[1737632063385,0.62203,3216.4,3216.1,0.62207]
[1737632063567,0.00461937,3216.5,3216.1,0.62207]
[1737632063772,0.00461937,3216.5,3216.0,0.6221]
[1737632063980,0.62207,3216.3,3216.0,0.6221]
[1737632064281,0.62207,3216.3,3216.1,0.62208]
[1737632064665,0.62207,3216.3,3216.0,0.62209]
[1737632065268,0.62205,3216.3,3216.1,0.62208]
[1737632065472,0.62205,3216.3,3215.9,1.5235]
[1737632065473,0.62207,3216.2,3216.0,0.6221]
[1737632066074,0.62208,3216.2,3215.9,2.14562]
[1737632066271,0.62208,3216.2,3216.0,0.6221]
[1737632066780,0.62206,3216.3,3216.0,0.6221]
[1737632067280,3.2078,3216.4,3216.0,0.6221]
[1737632067471,0.62207,3216.2,3216.0,0.6221]
[1737632067873,0.00461937,3216.5,3216.0,0.6221]
[1737632068072,0.62207,3216.2,3216.0,0.6221]
[1737632069779,0.62207,3216.2,3215.9,2.14561]
[1737632069981,0.62207,3216.2,3216.0,0.62209]
[1737632070181,0.62206,3216.3,3216.0,0.62209]
[1737632070484,0.62208,3216.2,3215.9,2.14561]
[1737632070786,0.00461937,3216.5,3215.9,1.5235]
[1737632070976,0.62207,3216.2,3216.0,0.6221]
[1737632071279,0.00461937,3216.5,3215.9,1.5235]
[1737632071280,0.62205,3216.3,3216.1,0.62208]
[1737632072175,0.00461937,3216.5,3216.4,0.62203]
[1737632072775,0.00461937,3216.5,3216.4,41.42203]
[1737632073177,0.00461937,3216.5,3216.4,0.62203]
[1737632073374,0.00461937,3216.5,3216.3,2.07889036]
[1737632073678,0.00461937,3216.5,3216.4,1.15053]
[1737632074080,0.00461937,3216.5,3216.4,0.5285]
[1737632074281,0.62662937,3216.5,3216.4,0.5285]
[1737632074485,0.62207,3216.2,3216.0,0.62209]
[1737632074784,0.62208,3216.1,3216.0,0.5073]
[1737632074979,1.5303,3216.4,3216.0,0.5073]
[1737632075280,0.62208,3216.2,3216.0,0.5073]
[1737632075478,0.62208,3216.2,3216.0,1.1294]
[1737632075871,1.5303,3216.4,3216.0,0.5073]
[1737632076076,0.62663937,3216.5,3216.3,0.62204]
[1737632076480,0.00461937,3216.5,3216.0,2.96648238]
[1737632076783,0.00461937,3216.5,3216.3,0.62203]
[1737632077983,0.00461937,3216.5,3216.0,2.96648238]
[1737632078183,0.00461937,3216.5,3216.3,0.62203]
[1737632078383,0.62662937,3216.5,3216.3,0.62203]
[1737632078882,0.00461937,3216.5,3216.0,0.5073]
[1737632079085,0.62663937,3216.5,3216.3,0.62205]
[1737632079783,0.00461937,3216.5,3216.0,0.5073]
[1737632079979,0.00461937,3216.5,3216.4,0.62203]
[1737632080582,0.62662937,3216.5,3216.4,0.62203]
[1737632080779,0.62662937,3216.5,3216.3,0.62204]
[1737632080984,0.00461937,3216.5,3216.0,0.5073]
[1737632081179,0.00461937,3216.5,3216.4,0.62203]
[1737632081483,0.62663937,3216.5,3216.3,0.62204]
[1737632081976,0.00461937,3216.5,3216.0,0.5073]
[1737632082176,0.62204,3216.4,3216.2,0.62206]
[1737632082379,0.00461937,3216.5,3216.0,0.5073]
[1737632082580,0.62203,3216.4,3216.1,0.62207]
[1737632082889,0.62203,3216.4,3216.2,0.62205]
[1737632083884,0.62663937,3216.5,3216.0,0.5073]
[1737632084091,0.62663937,3216.5,3216.3,0.62203]
[1737632084292,0.62203,3216.4,3216.3,0.62203]
[1737632084592,0.62663937,3216.5,3216.3,0.62203]
[1737632085188,0.00461937,3216.5,3216.0,2.96648238]
[1737632085485,0.00461937,3216.5,3216.4,0.62203]
[1737632086081,0.00461937,3216.5,3216.4,41.42203]
[1737632091690,3.6959,3217.1,3217.0,0.62191]
[1737632091879,3.2078,3217.1,3217.0,0.62191]
[1737632092083,3.2078,3217.1,3216.6,2.94488238]
[1737632092791,3.2078,3217.1,3217.0,0.62191]
[1737632096585,1.11666,3217.3,3217.1,0.62189]
[1737632096990,1.11666,3217.3,3216.9,0.0046607]
[1737632097192,1.11666,3217.3,3217.0,0.6219]
[1737632097397,0.4948,3217.3,3216.9,0.0046607]
[1737632097602,1.11667,3217.3,3216.9,0.0046607]
[1737632097800,1.11667,3217.3,3217.1,0.62188]
[1737632098499,1.11667,3217.3,3216.9,0.0046607]
[1737632098698,1.11667,3217.3,3217.0,0.6219]
[1737632099096,1.11667,3217.3,3217.1,0.5136]
[1737632099399,0.62187,3217.2,3217.1,0.5136]
[1737632099996,1.11667,3217.3,3217.1,1.13549]
[1737632100196,0.62187,3217.2,3217.1,0.5136]
[1737632100390,0.4948,3217.3,3217.1,0.5136]
[1737632100606,0.4948,3217.3,3217.2,0.62187]
[1737632100903,0.4948,3217.3,3217.1,0.5136]
[1737632101107,0.62187,3217.2,3217.1,0.5136]
[1737632101695,0.4948,3217.3,3217.1,0.5136]
[1737632102003,1.11666,3217.3,3217.1,1.13549]
[1737632103403,0.4948,3217.3,3217.1,0.5136]
[1737632103701,3.2078,3217.6,3217.1,0.5136]
[1737632104001,0.62181,3217.5,3217.3,0.62184]
[1737632104402,0.62181,3217.5,3217.2,1.0357]
[1737632104602,0.62181,3217.5,3217.3,0.62184]
[1737632105203,3.8296,3217.6,3217.4,0.62183]
[1737632105397,3.2078,3217.6,3217.5,0.62181]
[1737632107604,3.2078,3217.6,3217.5,41.42181]
[1737632108206,0.62174,3217.9,3217.5,40.8]
[1737632108401,3.2078,3217.7,3217.5,40.8]
[1737632108607,3.2078,3217.7,3217.6,1.12309]
[1737632109000,3.2078,3218.1,3217.6,0.5013]
[1737632109307,3.82952,3218.1,3217.8,0.62175]
[1737632109503,0.62172,3218.0,3217.6,0.5013]
[1737632109700,0.62172,3218.0,3217.7,0.62176]
[1737632109899,0.62173,3218.0,3217.7,0.62176]
[1737632110308,0.62173,3218.0,3217.8,0.62175]
[1737632111511,0.62174,3217.9,3217.7,0.62176]
[1737632111805,3.2078,3218.1,3217.6,0.5013]
[1737632111806,0.62178,3217.7,3217.6,0.5013]
[1737632112011,0.62182,3217.5,3217.3,3.82964]
[1737632112203,0.9971,3217.8,3217.3,3.7293]
[1737632112506,0.62183,3217.4,3217.3,3.7293]
[1737632114306,0.62183,3217.4,3217.3,3.2078]
[1737632115008,5.66698238,3217.7,3217.0,0.24844601]
[1737632115200,0.62191,3217.0,3216.9,3.2124607]
[1737632116007,0.62191,3217.0,3216.2,2.029757]
[1737632116008,4.0491154,3217.0,3215.9,40.8]
[1737632116307,3.2078,3216.0,3215.5,2.45918238]
[1737632116510,3.2078,3216.0,3215.9,0.62212]
[1737632116813,3.2078,3216.4,3216.2,0.62205]
[1737632117015,3.2078,3216.4,3216.3,0.4945]
[1737632117905,1.7446607,3216.6,3216.3,1.11655]
[1737632118104,3.2078,3216.4,3216.3,1.11655]
[1737632119008,0.0046607,3216.6,3216.5,0.62201]
[1737632125311,0.0046607,3216.6,3216.5,0.867054]
[1737632127716,3.2078,3216.8,3216.5,0.245044]
[1737632127919,3.2078,3216.8,3216.7,0.62197]
[1737632133632,0.62191,3217.0,3216.8,0.62193]
[1737632134021,0.62191,3217.0,3216.4,2.31216093]
[1737632134226,0.62191,3217.0,3216.9,0.62193]
[1737632134421,0.62191,3217.1,3216.9,0.62193]
[1737632134820,3.6927,3217.2,3216.9,0.62193]
[1737632135021,4.31458,3217.2,3217.0,0.5109]
[1737632135217,3.6927,3217.2,3217.0,0.5109]
[1737632135417,3.6927,3217.2,3217.0,1.1328]
[1737632135820,3.6927,3217.2,3217.0,0.5109]
[1737632136022,3.6927,3217.2,3217.0,1.1328]
[1737632136821,3.6927,3217.2,3217.1,0.62189]
[1737632137027,3.6927,3217.2,3217.0,1.1328]
[1737632137325,3.6927,3217.2,3217.1,0.62189]
[1737632137527,3.6927,3217.2,3217.0,1.1328]
[1737632137726,3.6927,3217.2,3217.0,0.5109]
[1737632137929,4.31457,3217.2,3217.0,0.5109]
[1737632138124,3.6927,3217.2,3217.0,1.1328]
[1737632138325,3.6927,3217.2,3217.1,0.62189]
[1737632138526,4.31458,3217.2,3217.0,1.13281]
[1737632138825,3.6927,3217.2,3217.0,0.5109]
[1737632139021,3.6927,3217.2,3217.0,1.1328]
[1737632139225,3.2078,3217.2,3217.1,0.62189]
[1737632139425,3.2078,3217.6,3217.5,0.62181]
[1737632140726,3.2078,3217.6,3217.4,0.62182]
[1737632140926,3.2078,3217.6,3217.3,41.2857]
[1737632141137,0.62178,3217.7,3217.5,0.62181]
[1737632141430,0.62178,3217.7,3217.6,0.5257]
[1737632141628,0.62178,3217.7,3217.3,41.2857]
[1737632141629,0.62183,3217.4,3217.3,0.4857]
[1737632141830,0.62183,3217.4,3217.1,0.4937]
[1737632141831,3.82964,3217.4,3217.1,0.4937]
[1737632142131,0.62186,3217.3,3217.1,0.4937]
[1737632142323,0.62186,3217.3,3217.0,0.5257]
[1737632142523,1.10316,3217.3,3217.0,0.5257]
[1737632142725,0.4813,3217.3,3217.0,0.5257]
[1737632142925,3.2078,3217.4,3217.1,0.62189]
[1737632143227,0.62188,3217.2,3217.0,0.5257]
[1737632143425,2.45918238,3217.1,3216.7,0.4844]
[1737632143725,3.2078,3217.0,3216.2,0.30366862]
[1737632143927,3.2078,3217.0,3216.2,1.0048]
[1737632143928,3.08114238,3216.8,3216.2,1.0048]
[1737632144234,0.622,3216.6,3216.1,3.2078]
[1737632144421,3.2078,3216.2,3216.0,0.0046607]
[1737632144735,0.62208,3216.1,3216.0,0.0046607]
[1737632145424,0.62208,3216.1,3214.8,3.7022]
[1737632145425,2.45918238,3215.4,3214.8,3.7022]
[1737632145826,2.45918238,3215.4,3214.8,3.2078]